bitfinex/quotes_SOLUSD_20251124
["timestamp","ask_amount","ask_price","bid_price","bid_amount"]
[1763958245027,0.81421531,131.13,131.11,11.90973438]
[1763958246753,0.14421531,131.13,131.12,11.90973438]
[1763958248251,0.81421531,131.13,131.12,11.90973438]
[1763958249541,0.14421531,131.13,131.12,11.90973438]
[1763958250759,0.14421531,131.13,131.12,19.53633596]
[1763958251059,0.14421531,131.13,131.12,31.44607034]
[1763958251265,0.14421531,131.13,131.12,32.20873049]
[1763958251460,0.15515819,131.14,131.12,32.20873049]
[1763958251658,0.13965315,131.15,131.13,19.53575436]
[1763958251836,0.13965315,131.15,131.14,11.90973438]
[1763958252039,0.16474934,131.16,131.14,11.90973438]
[1763958252269,0.16474934,131.16,131.15,11.90973438]
[1763958253635,0.16474934,131.16,131.15,19.53459141]
[1763958253836,0.16474934,131.16,131.14,0.76254384]
[1763958254039,0.16474934,131.16,131.15,11.90973438]
[1763958255758,0.16474934,131.16,131.11,11.06714067]
[1763958255759,0.86474934,131.16,131.11,3.44]
[1763958255935,0.86474934,131.16,131.05,9.63019334]
[1763958256139,0.86474934,131.16,131.13,11.90973438]
[1763958256871,0.16207904,131.14,131.13,11.90973438]
[1763958257861,0.86207904,131.14,131.03,7.63184003]
[1763958258059,0.86207904,131.14,131.1,11.90973438]
[1763958258677,0.86207904,131.14,131.11,11.90973438]
[1763958259047,0.86207904,131.14,131.12,11.90973438]
[1763958262051,0.16207904,131.14,131.13,11.90973438]
[1763958263677,0.16207904,131.14,131.13,19.53575436]
[1763958263968,0.86207904,131.14,131.11,0.76271832]
[1763958264143,0.86207904,131.14,131.08,18.12096]
[1763958264144,0.86207904,131.14,131.13,11.90973438]
[1763958264348,0.16207904,131.14,131.09,3.44]
[1763958264550,0.86207904,131.14,131.12,11.90973438]
[1763958264747,0.86207904,131.14,131.11,11.90973438]
[1763958264965,0.86207904,131.14,131.12,11.90973438]
[1763958265174,0.86207904,131.14,131.06,29.19088549]
[1763958265369,0.86207904,131.14,131.06,3.44]
[1763958265566,0.86207904,131.14,131.11,11.90973438]
[1763958266080,0.86207904,131.14,131.06,3.44]
[1763958266373,0.86207904,131.14,131.1,11.90973438]
[1763958266571,0.86207904,131.14,131.06,3.44]
[1763958266882,0.86207904,131.14,131.09,11.90973438]
[1763958267066,0.86207904,131.14,131.1,11.90973438]
[1763958267381,0.86207904,131.14,131.04,11.07105669]
[1763958267563,0.86207904,131.14,131.1,11.90973438]
[1763958267877,0.86207904,131.14,131.04,11.07105669]
[1763958268051,0.86207904,131.14,131.12,11.90973438]
[1763958268678,0.86207904,131.14,131.02,18.12096]
[1763958268878,30.03069438,131.12,131.04,3.44]
[1763958269072,30.03069438,131.12,131.06,11.90973438]
[1763958269271,30.03069438,131.12,131.0,163.6]
[1763958269272,11.90973438,131.1,131.0,163.6]
[1763958269482,11.90973438,131.09,131.03,11.90973438]
[1763958269786,18.12096,131.07,131.02,11.90973438]
[1763958270079,33.47069438,131.11,131.05,11.90973438]
[1763958270275,21.56096,131.11,131.0,160.16]
[1763958270480,0.7,131.1,131.05,11.90973438]
[1763958270778,0.7,131.1,131.04,11.90973438]
[1763958271092,0.7,131.1,131.08,11.90973438]
[1763958271309,0.7,131.1,131.01,15.34973438]
[1763958271310,0.7,131.12,131.09,11.90973438]
[1763958271577,0.7,131.12,131.11,11.90973438]
[1763958271877,0.7,131.12,131.1,11.90973438]
[1763958272665,0.7,131.12,131.06,7.63000928]
[1763958272864,0.7,131.12,131.1,11.90973438]
[1763958273165,0.7,131.12,131.04,7.63125763]
[1763958273690,0.7,131.12,131.03,0.763184]
[1763958273691,0.7,131.12,131.02,8.39562039]
[1763958273864,18.82096,131.12,131.0,160.16]
[1763958274061,30.73069438,131.12,131.07,11.90973438]
[1763958274392,11.90973438,131.1,131.04,11.90973438]
[1763958274779,0.7,131.09,131.0,163.6]
[1763958275077,0.7,131.09,131.04,11.90973438]
[1763958276281,0.7,131.09,131.05,11.90973438]
[1763958276496,0.7,131.09,131.06,11.90973438]
[1763958276994,0.15844737,131.08,131.07,11.90973438]
[1763958277180,0.85844737,131.08,131.0,163.6]
[1763958277386,0.85844737,131.08,131.06,11.90973438]
[1763958278478,0.15844737,131.08,131.07,11.90973438]
[1763958279381,0.85844737,131.08,131.01,37.66353653]
[1763958279578,0.85844737,131.08,131.07,11.90973438]
[1763958279780,0.15844737,131.08,131.07,11.90973438]
[1763958281700,0.85844737,131.08,131.01,0.76330051]
[1763958281890,0.85844737,131.08,131.07,11.90973438]
[1763958282200,0.15844737,131.08,131.07,11.90973438]
[1763958282586,0.85844737,131.08,131.02,7.63207734]
[1763958282890,0.85844737,131.08,131.07,11.90973438]
[1763958283604,0.15844737,131.08,131.07,11.90973438]
[1763958284984,0.87844737,131.08,131.0,160.16]
[1763958285192,0.87844737,131.08,131.04,11.90973438]
[1763958285398,0.87844737,131.08,131.0,160.16]
[1763958285709,0.87844737,131.08,131.03,11.90973438]
[1763958286006,18.12096,131.06,131.01,11.90973438]
[1763958286180,18.12096,131.06,131.0,160.16]
[1763958286377,0.72,131.05,131.01,11.90973438]
[1763958286794,0.72,131.05,131.02,11.90973438]
[1763958286987,0.72,131.05,131.0,160.16]
[1763958287183,12.62973438,131.05,131.0,160.16]
[1763958287395,11.90973438,131.04,131.0,160.16]
[1763958287601,0.72,131.04,131.0,160.16]
[1763958287807,0.72,131.03,131.0,136.31533638]
[1763958288393,0.72,131.03,131.01,11.90973438]
[1763958288598,0.72,131.03,131.0,124.405602]
[1763958288794,18.12096,131.06,131.02,11.90973438]
[1763958289019,0.72,131.05,131.02,11.90973438]
[1763958289316,0.72,131.05,131.0,124.405602]
[1763958289507,0.72,131.05,131.0,136.31533638]
[1763958289898,18.27940737,131.08,131.03,11.90973438]
[1763958290097,0.72,131.06,131.03,11.90973438]
[1763958290304,0.72,131.06,131.02,11.90973438]
[1763958290618,0.15844737,131.08,131.05,11.90973438]
[1763958290800,0.15844737,131.08,131.07,11.90973438]
[1763958291109,0.87844737,131.08,131.05,11.90973438]
[1763958291716,18.99940737,131.08,131.0,124.405602]
[1763958291892,0.87844737,131.08,131.04,11.90973438]
[1763958292089,0.15844737,131.08,131.06,11.90973438]
[1763958292316,0.87844737,131.08,131.06,11.90973438]
[1763958292714,0.15844737,131.08,131.06,11.90973438]
[1763958292916,0.15844737,131.08,131.07,11.90973438]
[1763958293512,0.87844737,131.08,131.02,3.44]
[1763958293697,0.87844737,131.08,131.0,124.405602]
[1763958293895,0.87844737,131.08,131.03,11.90973438]
[1763958296632,4.31844737,131.08,131.0,124.405602]
[1763958296948,0.14080469,131.04,131.03,11.90973438]
[1763958299422,0.14080469,131.04,131.03,20.30475841]
[1763958300131,0.14080469,131.04,131.03,12.67291838]
[1763958300340,0.14080469,131.04,131.03,11.90973438]
[1763958300514,0.14080469,131.04,131.0,124.405602]
[1763958300852,12.77053907,131.04,131.0,124.405602]
[1763958301013,0.86080469,131.04,131.0,124.405602]
[1763958301213,0.72,131.03,131.02,11.90973438]
[1763958301412,0.14080469,131.04,131.02,11.90973438]
[1763958301810,0.14080469,131.04,131.0,124.405602]
[1763958302226,0.14080469,131.04,131.03,11.90973438]
[1763958302446,0.14080469,131.04,131.01,0.76330051]
[1763958302744,0.14080469,131.04,131.03,11.90973438]
[1763958306541,0.14080469,131.04,131.03,7.00138054]
[1763958306840,0.86080469,131.04,131.01,4.20330051]
[1763958307045,0.86080469,131.04,131.03,7.00138054]
[1763958307248,0.86080469,131.04,131.0,124.405602]
[1763958307619,0.86080469,131.04,131.0,131.40698254]
[1763958307835,0.86080469,131.04,131.0,124.405602]
[1763958308120,0.86080469,131.04,131.01,7.00138054]
[1763958308845,0.86080469,131.04,131.0,131.40698254]
[1763958309039,0.86080469,131.04,131.01,7.00138054]
[1763958309239,0.86080469,131.04,131.0,131.40698254]
[1763958309541,0.86080469,131.04,131.0,124.405602]
[1763958309727,0.86080469,131.04,131.0,131.40698254]
[1763958310546,0.86080469,131.04,131.01,7.00138054]
[1763958310748,18.98176469,131.04,131.0,124.405602]
[1763958310955,18.98176469,131.04,131.0,131.40698254]
[1763958311135,0.72,131.03,131.01,7.00138054]
[1763958311345,0.72,131.03,131.02,7.00138054]
[1763958311535,0.72,131.03,131.01,7.00138054]
[1763958311728,0.72,131.03,131.0,131.40698254]
[1763958311922,0.72,131.03,131.0,124.405602]
[1763958313135,0.72,131.03,131.0,131.40698254]
[1763958313450,0.72,131.03,131.0,124.405602]
[1763958314243,0.72,131.03,131.02,7.00138054]
[1763958314921,0.72,131.03,131.01,7.00138054]
[1763958315121,0.72,131.03,131.0,131.40698254]
[1763958315321,0.72,131.03,131.01,7.00138054]
[1763958316150,0.72,131.03,131.0,124.405602]
[1763958316151,0.72,131.03,131.0,131.40698254]
[1763958316938,0.16737495,131.01,131.0,131.40698254]
[1763958317331,0.85737495,131.01,131.0,124.405602]
[1763958319354,4.29737495,131.01,131.0,122.965602]
[1763958319552,11.29875549,131.01,131.0,122.965602]
[1763958319753,11.29875549,131.01,131.0,122.105602]
[1763958320252,0.85737495,131.01,131.0,122.105602]
[1763958320451,22.41833495,131.01,131.0,122.105602]
[1763958321129,0.16737495,131.01,131.0,129.10698254]
[1763958321329,0.16737495,131.01,131.0,129.82698254]
[1763958321842,0.16737495,131.01,131.0,122.825602]
[1763958322035,0.16737495,131.01,131.0,129.82698254]
[1763958322935,0.16369566,131.02,131.0,133.26698254]
[1763958323174,0.14648212,131.05,131.01,14.72276108]
[1763958323454,0.16462025,131.07,131.05,7.00138054]
[1763958323668,0.16462025,131.07,131.06,7.72138054]
[1763958325957,0.16462025,131.07,131.06,0.72]
[1763958326169,0.16462025,131.07,131.06,7.72138054]
[1763958326847,0.16462025,131.07,131.06,18.84096]
[1763958327047,0.16462025,131.07,131.06,7.72138054]
[1763958329376,0.16462025,131.07,131.04,0.72]
[1763958329675,0.16462025,131.07,131.06,7.00138054]
[1763958331151,0.16462025,131.07,131.06,7.72138054]
[1763958331569,0.16462025,131.07,131.06,0.72]
[1763958331877,0.16462025,131.07,131.06,7.00138054]
[1763958332779,0.16462025,131.07,131.06,7.72138054]
[1763958333468,0.16462025,131.07,131.04,0.72]
[1763958333857,0.16462025,131.07,131.06,7.00138054]
[1763958335559,0.16462025,131.07,131.06,7.72138054]
[1763958336419,0.16654116,131.09,131.06,0.72]
[1763958336552,0.16654116,131.09,131.07,7.72138054]
[1763958336753,0.69,131.14,131.07,0.72]
[1763958336963,0.1644023,131.08,131.02,0.72]
[1763958337161,0.1644023,131.08,131.0,122.825602]
[1763958337363,7.69138054,131.07,131.0,122.825602]
[1763958337671,7.00138054,131.06,131.0,129.10698254]
[1763958337873,7.00138054,131.06,131.02,7.00138054]
[1763958337874,0.69,131.06,131.02,7.00138054]
[1763958338380,0.69,131.06,131.03,7.00138054]
[1763958338803,0.69,131.06,131.0,122.825602]
[1763958338964,0.69,131.06,131.01,7.00138054]
[1763958339381,7.69138054,131.06,131.0,129.10698254]
[1763958339686,0.69,131.06,131.01,7.00138054]
[1763958339891,0.69,131.05,131.01,7.00138054]
[1763958340499,7.69138054,131.05,131.0,122.105602]
[1763958340796,0.69,131.05,131.01,7.00138054]
[1763958340959,7.00138054,131.07,131.01,7.00138054]
[1763958341165,0.69,131.06,131.01,7.00138054]
[1763958341470,7.00138054,131.05,131.0,122.105602]
[1763958341666,0.69,131.04,131.0,122.105602]
[1763958342989,7.69138054,131.04,131.0,122.105602]
[1763958343184,7.00138054,131.02,131.0,122.105602]
[1763958343599,0.69,131.01,131.0,122.105602]
[1763958343802,7.69138054,131.04,131.0,122.105602]
[1763958343976,18.12096,131.06,131.0,122.105602]
[1763958343977,0.69,131.02,131.0,122.105602]
[1763958344179,0.65,131.05,131.0,129.10698254]
[1763958344484,0.65,131.04,131.0,122.105602]
[1763958348572,4.13,131.06,131.01,7.67138054]
[1763958348895,4.13,131.06,131.01,7.00138054]
[1763958349096,0.69,131.06,131.02,7.00138054]
[1763958349395,0.69,131.06,131.03,7.00138054]
[1763958349595,0.69,131.06,131.02,7.67138054]
[1763958350696,7.69138054,131.06,131.0,129.10698254]
[1763958350903,7.69138054,131.06,131.0,122.105602]
[1763958351101,0.69,131.05,131.01,7.00138054]
[1763958352074,0.69,131.05,131.0,122.775602]
[1763958352706,21.7253623,131.08,131.04,7.00138054]
[1763958352707,0.1644023,131.08,131.04,7.00138054]
[1763958352883,0.69,131.07,131.02,0.67]
[1763958353215,0.1644023,131.08,131.02,0.67]
[1763958353380,0.1644023,131.08,131.07,7.00138054]
[1763958353580,0.1644023,131.08,131.02,4.11]
[1763958353800,0.1644023,131.08,131.06,7.00138054]
[1763958354199,0.1644023,131.08,131.07,7.00138054]
[1763958354984,0.1644023,131.08,131.06,7.00138054]
[1763958355889,0.1644023,131.08,131.05,7.00138054]
[1763958356128,0.1644023,131.08,131.04,0.67]
[1763958356288,0.1644023,131.08,131.05,7.00138054]
[1763958356487,0.1644023,131.08,131.05,7.67138054]
[1763958356810,0.69,131.1,131.06,7.00138054]
[1763958356982,0.13778574,131.07,131.06,7.00138054]
[1763958358405,0.13778574,131.07,131.05,7.00138054]
[1763958358718,0.13778574,131.07,131.06,7.00138054]
[1763958360198,0.82778574,131.07,131.0,122.105602]
[1763958360391,0.82778574,131.07,131.02,7.00138054]
[1763958360714,0.82778574,131.07,131.04,7.00138054]
[1763958360918,0.82778574,131.07,131.03,7.00138054]
[1763958361091,7.82916628,131.07,131.01,7.00138054]
[1763958361426,7.00138054,131.06,131.01,7.00138054]
[1763958361711,0.69,131.06,131.01,7.00138054]
[1763958361885,0.69,131.05,131.0,122.105602]
[1763958362089,0.69,131.05,131.01,7.00138054]
[1763958362700,0.69,131.05,131.0,129.10698254]
[1763958362910,7.69138054,131.05,131.0,129.10698254]
[1763958363114,0.13778574,131.07,131.03,7.00138054]
[1763958363295,0.82778574,131.07,131.03,7.00138054]
[1763958363691,0.82778574,131.07,131.03,7.67138054]
[1763958364091,0.82778574,131.07,131.04,7.00138054]
[1763958364291,0.13778574,131.07,131.05,7.00138054]
[1763958364503,0.13778574,131.07,131.06,7.00138054]
[1763958364910,0.13778574,131.07,131.05,7.00138054]
[1763958365297,0.13778574,131.07,131.06,7.67138054]
[1763958366326,0.13778574,131.07,131.03,0.67]
[1763958366618,7.82916628,131.07,131.01,7.00138054]
[1763958366943,7.82916628,131.07,131.0,122.105602]
[1763958367099,11.13138054,131.06,131.0,129.10698254]
[1763958367422,11.13138054,131.06,131.01,7.00138054]
[1763958367809,7.13916628,131.07,131.02,7.00138054]
[1763958368130,0.13778574,131.07,131.04,7.00138054]
[1763958368599,0.13778574,131.07,131.05,0.67]
[1763958368795,0.13778574,131.07,131.06,11.91929375]
[1763958369098,0.13778574,131.07,131.05,11.91929375]
[1763958369312,0.82778574,131.07,131.04,11.91929375]
[1763958369711,0.13778574,131.07,131.05,12.58929375]
[1763958370220,0.13778574,131.07,131.05,11.91929375]
[1763958370425,0.82778574,131.07,131.0,122.105602]
[1763958370634,0.13778574,131.07,131.04,11.91929375]
[1763958370998,0.13778574,131.07,131.05,11.91929375]
[1763958371629,0.85671367,131.09,131.05,11.91929375]
[1763958371842,0.14372247,131.1,131.06,0.67]
[1763958372136,12.06301622,131.1,131.04,11.91929375]
[1763958372719,12.06301622,131.1,131.04,12.58929375]
[1763958372922,12.06301622,131.1,131.04,11.91929375]
[1763958373230,11.91929375,131.08,131.0,122.775602]
[1763958373406,11.91929375,131.07,131.01,12.58929375]
[1763958373804,30.69025375,131.09,131.03,11.91929375]
[1763958374228,3.44,131.08,131.04,11.91929375]
[1763958374600,4.09,131.08,131.03,12.58929375]
[1763958375326,0.65,131.07,131.01,12.58929375]
[1763958375724,0.65,131.07,131.02,11.91929375]
[1763958375925,3.44,131.08,131.03,11.91929375]
[1763958376102,0.65,131.07,131.02,11.91929375]
[1763958376507,3.44,131.08,131.03,12.62929375]
[1763958376730,4.09,131.08,131.03,11.91929375]
[1763958376930,0.14263498,131.05,131.04,12.62929375]
[1763958377130,0.14263498,131.05,131.04,11.91929375]
[1763958377631,0.14263498,131.05,131.04,12.62929375]
[1763958378332,0.14263498,131.05,131.03,0.71]
[1763958378522,0.14263498,131.05,131.04,12.62929375]
[1763958381319,0.14263498,131.05,131.04,11.91929375]
[1763958381536,0.14263498,131.05,131.04,12.62929375]
[1763958383033,15.93521258,131.1,131.05,11.91929375]
[1763958383361,11.91929375,131.09,131.04,11.91929375]
[1763958383513,11.91929375,131.09,131.03,11.91929375]
[1763958383715,15.35929375,131.1,131.04,11.91929375]
[1763958384335,15.35929375,131.1,131.0,125.545602]
[1763958384542,15.35929375,131.1,131.04,11.91929375]
[1763958385038,0.58,131.09,131.04,11.91929375]
[1763958385537,0.58,131.09,131.04,12.62929375]
[1763958386317,0.58,131.09,131.04,0.71]
[1763958386540,0.58,131.09,131.04,12.62929375]
[1763958386738,0.15121384,131.12,131.05,0.71]
[1763958386940,3.57890148,131.11,131.05,0.71]
[1763958387541,3.57890148,131.11,131.08,11.91929375]
[1763958387731,4.15890148,131.11,131.08,11.91929375]
[1763958388444,4.15890148,131.11,131.07,11.91929375]
[1763958389147,4.15890148,131.11,131.07,12.62929375]
[1763958389653,3.57890148,131.11,131.07,12.62929375]
[1763958390014,3.57890148,131.11,131.07,0.71]
[1763958390221,0.58,131.1,131.06,11.91929375]
[1763958390731,15.49819523,131.11,131.06,12.62929375]
[1763958390937,0.13890148,131.11,131.07,0.71]
[1763958391130,0.13890148,131.11,131.08,11.91929375]
[1763958391545,0.13890148,131.11,131.08,12.62929375]
[1763958391847,0.58,131.1,131.0,140.226562]
[1763958392022,11.91929375,131.08,131.02,12.62929375]
[1763958392347,3.44,131.07,131.06,11.91929375]
[1763958392640,3.44,131.07,131.05,11.91929375]
[1763958392857,3.44,131.07,131.04,11.91929375]
[1763958393057,3.44,131.07,131.05,11.91929375]
[1763958393556,3.44,131.07,131.05,12.62929375]
[1763958393877,15.93929375,131.1,131.05,12.62929375]
[1763958394033,0.58,131.09,131.01,0.71]
[1763958394236,12.49929375,131.09,131.03,11.91929375]
[1763958394929,30.62025375,131.08,131.02,0.71]
[1763958395129,18.12096,131.08,131.04,11.91929375]
[1763958395634,15.93929375,131.1,131.04,12.62929375]
[1763958395834,0.58,131.09,131.04,12.62929375]
[1763958396571,0.58,131.09,131.04,0.71]
[1763958396732,11.91929375,131.08,131.02,12.62929375]
[1763958396927,0.14396953,131.05,131.02,12.62929375]
[1763958397366,0.14396953,131.05,131.03,0.71]
[1763958397537,0.14396953,131.05,131.03,12.62929375]
[1763958397949,0.14396953,131.05,131.04,12.62929375]
[1763958398440,0.14396953,131.05,131.04,11.91929375]
[1763958398858,0.14396953,131.05,131.04,12.62929375]
[1763958399057,0.14396953,131.05,131.04,11.91929375]
[1763958399259,0.14396953,131.05,131.03,11.91929375]
[1763958399558,0.14396953,131.05,131.04,11.91929375]
[1763958400253,0.14396953,131.05,131.04,12.62929375]
[1763958400957,0.14396953,131.05,131.04,11.91929375]
[1763958403771,0.14396953,131.05,131.04,12.62929375]
[1763958404661,0.14210581,131.06,131.04,12.62929375]
[1763958404967,0.14210581,131.06,131.0,122.795602]
[1763958404968,0.81210581,131.06,131.0,122.795602]
[1763958405182,18.12096,131.04,131.0,122.105602]
[1763958405352,30.04025375,131.03,131.0,122.105602]
[1763958405558,11.91929375,131.02,131.0,122.105602]
[1763958405849,0.69,131.01,131.0,122.105602]
[1763958407068,12.60929375,131.01,131.0,122.105602]
[1763958407662,16.04929375,131.01,131.0,122.105602]
[1763958408864,16.04929375,131.01,131.0,118.12906618]
[1763958409570,16.04929375,131.01,131.0,72.2283548]
[1763958409571,34.1615926,131.01,131.0,72.2283548]
[1763958410255,18.12096,130.99,130.98,0.1]
[1763958410455,32.73025374,130.99,130.98,0.1]
[1763958410969,35.79433126,130.99,130.98,0.1]
[1763958411347,25.3075418,130.99,130.98,0.1]
[1763958411756,23.30754181,130.99,130.98,0.1]
[1763958411947,25.3075418,130.99,130.98,0.1]
[1763958412677,36.14565094,130.99,130.98,0.1]
[1763958413255,1.99999999,130.95,130.9,0.1]
[1763958413456,30.04025375,130.92,130.9,0.1]
[1763958413977,30.73025375,130.92,130.9,0.1]
[1763958414163,18.81096,130.92,130.9,0.1]
[1763958414364,18.12096,130.92,130.9,0.1]
[1763958414976,18.12096,130.94,130.91,0.77659453]
[1763958415278,3.44,130.93,130.91,0.77659453]
[1763958415467,3.44,130.92,130.91,0.77659453]
[1763958415669,3.75407752,130.99,130.91,12.69588828]
[1763958415849,3.44,130.98,130.93,11.91929375]
[1763958416052,3.44,130.98,130.92,0.7]
[1763958416249,3.44,130.98,130.93,11.91929375]
[1763958416453,18.12096,130.95,130.91,11.99588828]
[1763958416674,3.44,130.94,130.91,12.69588828]
[1763958417076,0.16201787,130.92,130.91,11.99588828]
[1763958417679,0.16201787,130.92,130.91,12.69588828]
[1763958418590,18.28297787,130.92,130.91,0.07659453]
[1763958419273,0.16201787,130.92,130.91,0.07659453]
[1763958419474,0.85201787,130.92,130.91,0.07659453]
[1763958419663,0.16201787,130.92,130.91,0.07659453]
[1763958419981,18.28297787,130.92,130.91,0.07659453]
[1763958420153,21.72297787,130.92,130.91,0.07659453]
[1763958420781,4.29201787,130.92,130.91,0.07659453]
[1763958421078,18.28297787,130.92,130.91,0.07659453]
[1763958421279,21.72297787,130.92,130.91,0.07659453]
[1763958421865,21.72297787,130.92,130.91,0.77659453]
[1763958422089,0.16201787,130.92,130.91,0.77659453]
[1763958422383,3.60201787,130.92,130.91,0.77659453]
[1763958422975,0.16201787,130.92,130.91,12.69588828]
[1763958423278,0.16434611,130.93,130.91,12.69588828]
[1763958423464,0.16434611,130.93,130.92,12.61929375]
[1763958424587,0.14652725,130.95,130.92,12.61929375]
[1763958424800,0.69,131.05,130.94,11.91929375]
[1763958424960,0.69,131.07,130.98,11.91929375]
[1763958425298,0.69,131.09,131.0,11.91929375]
[1763958425482,3.44,131.08,131.05,11.91929375]
[1763958425786,0.69,131.11,131.07,11.91929375]
[1763958425999,3.44,131.11,131.08,11.91929375]
[1763958426288,3.44,131.12,131.09,11.91929375]
[1763958426542,16.04929375,131.12,131.04,0.64]
[1763958426790,18.12096,131.08,131.05,11.91929375]
[1763958427087,3.44,131.07,131.04,11.91929375]
[1763958427269,18.12096,131.09,131.06,11.91929375]
[1763958427469,3.44,131.09,131.06,11.91929375]
[1763958427883,21.56096,131.09,131.06,11.91929375]
[1763958428392,21.56096,131.1,131.07,11.91929375]
[1763958428699,39.44080158,131.17,131.09,11.91929375]
[1763958428700,12.60929375,131.16,131.09,11.91929375]
[1763958429012,3.44,131.15,131.11,11.91929375]
[1763958429161,0.89,131.18,131.13,11.91929375]
[1763958429368,3.44,131.17,131.13,11.91929375]
[1763958429565,18.12096,131.15,131.12,11.91929375]
[1763958429795,18.12096,131.15,131.1,12.55929375]
[1763958429966,0.69,131.15,131.11,11.91929375]
[1763958430165,18.12096,131.14,131.11,11.91929375]
[1763958430389,0.2,131.18,131.13,11.91929375]
[1763958430587,0.2,131.18,131.15,6.99158774]
[1763958430588,3.64,131.18,131.15,6.99158774]
[1763958430784,21.76096,131.18,131.15,6.99158774]
[1763958431088,21.76096,131.18,131.04,95.62000165]
[1763958431089,25.80254774,131.17,131.12,6.99158774]
[1763958431280,6.99158774,131.15,131.09,6.99158774]
[1763958431484,18.12096,131.12,131.09,6.99158774]
[1763958431793,3.44,131.14,131.07,6.99158774]
[1763958431794,18.12096,131.11,131.07,6.99158774]
[1763958431987,18.12096,131.11,131.09,6.99158774]
[1763958432290,3.44,131.12,131.1,6.99158774]
[1763958432672,0.69,131.15,131.11,6.99158774]
[1763958432885,3.44,131.14,131.11,6.99158774]
[1763958433197,3.44,131.14,131.12,6.99158774]
[1763958433492,0.69,131.13,131.08,6.99158774]
[1763958433789,0.69,131.13,131.09,6.99158774]
[1763958434293,3.44,131.13,131.09,7.63158774]
[1763958434466,4.13,131.13,131.09,6.99158774]
[1763958434665,3.44,131.13,131.09,6.99158774]
[1763958434966,4.13,131.15,131.09,0.64]
[1763958435162,4.13,131.15,131.1,6.99158774]
[1763958435392,28.55254774,131.15,131.09,6.99158774]
[1763958435590,7.68158774,131.14,131.09,6.99158774]
[1763958435766,18.12096,131.12,131.07,0.64]
[1763958435966,3.44,131.11,131.07,6.99158774]
[1763958436165,4.15,131.11,131.07,6.99158774]
[1763958436366,3.44,131.11,131.08,6.99158774]
[1763958436567,3.44,131.11,131.09,6.99158774]
[1763958436973,0.15448224,131.1,131.09,6.99158774]
[1763958437190,0.15448224,131.1,131.08,6.99158774]
[1763958437470,18.27544224,131.1,131.08,6.99158774]
[1763958437803,0.15448224,131.1,131.08,6.99158774]
[1763958437986,0.15448224,131.1,131.09,6.99158774]
[1763958438388,0.15448224,131.1,131.09,7.63158774]
[1763958438694,0.15448224,131.1,131.05,0.64]
[1763958438903,0.15448224,131.1,131.08,6.99158774]
[1763958439075,0.15448224,131.1,131.09,6.99158774]
[1763958439974,0.15448224,131.1,131.09,7.63158774]
[1763958441475,0.1527853,131.12,131.09,7.63158774]
[1763958441691,0.1470529,131.14,131.09,7.63158774]
[1763958441692,0.1470529,131.14,131.11,13.98317548]
[1763958441889,0.14217968,131.19,131.13,21.60919546]
[1763958442194,0.14217968,131.19,131.15,6.99158774]
[1763958442393,0.14217968,131.19,131.16,6.99158774]
[1763958442769,0.14217968,131.19,131.17,6.99158774]
[1763958443281,0.2,131.24,131.18,6.99158774]
[1763958443481,0.2,131.24,131.2,6.99158774]
[1763958443685,0.2,131.24,131.14,18.12096]
[1763958443878,0.2,131.24,131.2,6.99158774]
[1763958444403,0.91,131.21,131.12,0.76266015]
[1763958444576,18.12096,131.2,131.13,6.99158774]
[1763958444780,18.83096,131.2,131.17,6.99158774]
[1763958444986,0.71,131.19,131.07,25.75024288]
[1763958445191,0.71,131.19,131.14,6.99158774]
[1763958445389,4.15,131.19,131.15,6.99158774]
[1763958445585,18.12096,131.18,131.05,10.43158774]
[1763958445787,18.83096,131.18,131.16,6.99158774]
[1763958446114,0.71,131.2,131.17,6.99158774]
[1763958446905,0.71,131.2,131.18,6.99158774]
[1763958448580,0.2,131.21,131.19,6.99158774]
[1763958449195,0.91,131.21,131.19,6.99158774]
[1763958449397,0.2,131.21,131.2,6.99158774]
[1763958449787,0.2,131.21,131.13,14.6174739]
[1763958449984,0.2,131.21,131.2,6.99158774]
[1763958450405,0.91,131.21,131.17,6.99158774]
[1763958450717,0.91,131.21,131.2,6.99158774]
[1763958450718,0.2,131.21,131.2,6.99158774]
[1763958450884,0.2,131.21,131.13,14.6175663]
[1763958451085,0.91,131.21,131.19,6.99158774]
[1763958451588,0.71,131.2,131.19,6.99158774]
[1763958453396,0.2,131.21,131.19,6.99158774]